[Event "Early-Titled-Tuesday-Blitz-May-28-2024"]
[Site "Chess.com"]
[Date "2024.05.28"]
[Round "1"]
[White "NewBornNow"]
[Black "Dexter_Dyke"]
[Result "1-0"]
[WhiteElo "2803"]
[BlackElo "2449"]
[TimeControl "180+1"]
[EndTime "8:08:28 PDT"]
[Termination "NewBornNow won by resignation"]

1. e4 {[%clk 0:03:00.4]} 1... e6 {[%clk 0:03:00]} 2. d4 {[%clk 0:03:00]} 2... a6
{[%clk 0:03:00.9]} 3. c4 {[%clk 0:02:59.3]} 3... d5 {[%clk 0:03:00.8]} 4. Nc3
{[%clk 0:02:56.7]} 4... Bb4 {[%clk 0:02:59.8]} 5. a3 {[%clk 0:02:53.2]} 5...
Bxc3+ {[%clk 0:02:59.3]} 6. bxc3 {[%clk 0:02:53.1]} 6... dxe4 {[%clk 0:03:00.2]}
7. Qg4 {[%clk 0:02:53.3]} 7... Nf6 {[%clk 0:02:59.8]} 8. Qxg7 {[%clk 0:02:53.4]}
8... Rg8 {[%clk 0:03:00.3]} 9. Qh6 {[%clk 0:02:53.4]} 9... c5 {[%clk 0:02:59.9]}
10. dxc5 {[%clk 0:02:43.4]} 10... Nbd7 {[%clk 0:02:51.8]} 11. Qe3 {[%clk
0:02:35.6]} 11... Qa5 {[%clk 0:02:49.9]} 12. h3 {[%clk 0:02:24.6]} 12... Nxc5
{[%clk 0:02:41.4]} 13. Rb1 {[%clk 0:02:23.9]} 13... Bd7 {[%clk 0:02:35.8]} 14.
Qd4 {[%clk 0:02:16.4]} 14... Rg6 {[%clk 0:02:24.1]} 15. Be3 {[%clk 0:02:01]}
15... b6 {[%clk 0:02:14.1]} 16. g4 {[%clk 0:01:44.4]} 16... Bc6 {[%clk 0:02:13]}
17. g5 {[%clk 0:01:37.8]} 17... Rd8 {[%clk 0:01:57.6]} 18. gxf6 {[%clk 0:01:19]}
18... Rxd4 {[%clk 0:01:57.4]} 19. Bxd4 {[%clk 0:01:19.1]} 19... e3 {[%clk
0:01:46.6]} 20. f3 {[%clk 0:01:16.4]} 20... Na4 {[%clk 0:01:30.7]} 21. Rb4
{[%clk 0:01:03.9]} 21... e5 {[%clk 0:01:22.6]} 22. Bxe3 {[%clk 0:01:00.9]} 22...
Nxc3 {[%clk 0:01:22.3]} 23. Bd2 {[%clk 0:00:47.3]} 23... Qxa3 {[%clk 0:01:21.7]}
24. Rxb6 {[%clk 0:00:44]} 24... Qa1+ {[%clk 0:01:17.4]} 25. Kf2 {[%clk
0:00:43.9]} 25... Nd1+ {[%clk 0:01:18]} 26. Ke2 {[%clk 0:00:43.9]} 26... Kd7
{[%clk 0:01:06.2]} 27. Rb3 {[%clk 0:00:31.1]} 27... e4 {[%clk 0:00:57.2]} 28.
fxe4 {[%clk 0:00:28.2]} 28... Bxe4 {[%clk 0:00:56.8]} 29. Nf3 {[%clk 0:00:28.4]}
29... Rxf6 {[%clk 0:00:49.4]} 30. Bg2 {[%clk 0:00:26.8]} 30... Qa2 {[%clk
0:00:33.2]} 31. Ne5+ {[%clk 0:00:22.2]} 31... Kc8 {[%clk 0:00:26.7]} 32. Bxe4
{[%clk 0:00:20.7]} 32... Qxb3 {[%clk 0:00:26.3]} 33. Rxd1 {[%clk 0:00:20.8]}
33... Qxh3 {[%clk 0:00:24.3]} 34. Nf3 {[%clk 0:00:20.9]} 34... Qg2+ {[%clk
0:00:23.1]} 35. Ke3 {[%clk 0:00:20.1]} 35... Re6 {[%clk 0:00:23.7]} 36. Rg1
{[%clk 0:00:18.7]} 36... Qh3 {[%clk 0:00:18.5]} 37. Kd4 {[%clk 0:00:18.2]} 37...
f5 {[%clk 0:00:17.2]} 38. Bd5 {[%clk 0:00:17.9]} 38... Rg6 {[%clk 0:00:16.7]}
39. Rb1 {[%clk 0:00:17.4]} 39... Qg4+ {[%clk 0:00:15.7]} 40. Kc5 {[%clk
0:00:16.6]} 40... Qg2 {[%clk 0:00:15.7]} 41. Bb7+ {[%clk 0:00:14.1]} 41... Kd7
{[%clk 0:00:14.4]} 42. Ne5+ {[%clk 0:00:14.1]} 42... Ke6 {[%clk 0:00:14.8]} 43.
Bxg2 {[%clk 0:00:14.6]} 43... Rxg2 {[%clk 0:00:14.2]} 44. Bc3 {[%clk 0:00:14.9]}
44... f4 {[%clk 0:00:13.9]} 45. Rb6+ {[%clk 0:00:15]} 45... Kf5 {[%clk
0:00:13.3]} 46. Bd4 {[%clk 0:00:15.4]} 46... Ke4 {[%clk 0:00:12.6]} 47. Rxa6
{[%clk 0:00:15]} 47... f3 {[%clk 0:00:12.8]} 48. Rf6 {[%clk 0:00:15.2]} 48... h5
{[%clk 0:00:09.2]} 49. Rxf3 {[%clk 0:00:15.1]} 49... h4 {[%clk 0:00:09.4]} 50.
Rh3 {[%clk 0:00:15.2]} 50... Rc2 {[%clk 0:00:08.3]} 51. Rxh4+ {[%clk 0:00:15.3]}
51... Kf5 {[%clk 0:00:08.9]} 52. Nc6 {[%clk 0:00:15.3]} 52... Rc1 {[%clk
0:00:08.5]} 53. Rh2 {[%clk 0:00:15.4]} 53... Ke6 {[%clk 0:00:09.4]} 54. Re2+
{[%clk 0:00:15.5]} 54... Kf7 {[%clk 0:00:08.3]} 55. Re7+ {[%clk 0:00:15.3]}
55... Kg6 {[%clk 0:00:09.2]} 56. Ra7 {[%clk 0:00:15.1]} 56... Kf5 {[%clk
0:00:10.1]} 57. Kd5 {[%clk 0:00:15.6]} 57... Rh1 {[%clk 0:00:09.2]} 58. c5
{[%clk 0:00:16]} 58... Rc1 {[%clk 0:00:08.7]} 59. Ne7+ {[%clk 0:00:16.9]} 59...
Kg5 {[%clk 0:00:07.9]} 60. c6 {[%clk 0:00:17.8]} 60... Kh6 {[%clk 0:00:08.5]}
61. c7 {[%clk 0:00:17.9]} 61... Kg5 {[%clk 0:00:08.5]} 62. Nc6 {[%clk
0:00:18.2]} 62... Rxc6 {[%clk 0:00:08]} 63. Kxc6 {[%clk 0:00:18.1]} 1-0

[Event "Early-Titled-Tuesday-Blitz-May-28-2024"]
[Site "Chess.com"]
[Date "2024.05.28"]
[Round "1"]
[White "Thjop"]
[Black "HouseOfDurin"]
[Result "1-0"]
[WhiteElo "2602"]
[BlackElo "2237"]
[TimeControl "180+1"]
[EndTime "8:08:29 PDT"]
[Termination "Thjop won by resignation"]

1. e4 {[%clk 0:02:58]} 1... g6 {[%clk 0:02:59.2]} 2. d4 {[%clk 0:02:57.9]} 2...
Bg7 {[%clk 0:02:59.8]} 3. Nc3 {[%clk 0:02:58.5]} 3... d6 {[%clk 0:03:00.2]} 4.
Nge2 {[%clk 0:02:58.9]} 4... a6 {[%clk 0:03:00.4]} 5. a4 {[%clk 0:02:58.9]} 5...
b6 {[%clk 0:03:00.3]} 6. g3 {[%clk 0:02:59]} 6... Bb7 {[%clk 0:03:00.6]} 7. Bg2
{[%clk 0:02:57.3]} 7... Nd7 {[%clk 0:03:01.2]} 8. h4 {[%clk 0:02:54]} 8... h6
{[%clk 0:02:54.3]} 9. h5 {[%clk 0:02:53.3]} 9... g5 {[%clk 0:02:53.2]} 10. f4
{[%clk 0:02:53.3]} 10... gxf4 {[%clk 0:02:51.4]} 11. Bxf4 {[%clk 0:02:49]} 11...
e5 {[%clk 0:02:51.6]} 12. Be3 {[%clk 0:02:48.6]} 12... c5 {[%clk 0:02:49]} 13.
d5 {[%clk 0:02:42]} 13... Qe7 {[%clk 0:02:33]} 14. Qd2 {[%clk 0:02:40.8]} 14...
O-O-O {[%clk 0:02:32.5]} 15. O-O-O {[%clk 0:02:40.2]} 15... Ngf6 {[%clk
0:02:29.4]} 16. Bh3 {[%clk 0:02:34.9]} 16... Kb8 {[%clk 0:02:28.8]} 17. Bf5
{[%clk 0:02:34.8]} 17... Bc8 {[%clk 0:02:14]} 18. g4 {[%clk 0:02:30.6]} 18...
Nh7 {[%clk 0:02:07.2]} 19. Rdf1 {[%clk 0:02:24.8]} 19... f6 {[%clk 0:01:56.9]}
20. Ng3 {[%clk 0:02:24]} 20... Ng5 {[%clk 0:01:56.5]} 21. Qd3 {[%clk 0:02:16.3]}
21... Ka7 {[%clk 0:01:55.4]} 22. b3 {[%clk 0:02:14.8]} 22... Bf8 {[%clk
0:01:35.1]} 23. Kb2 {[%clk 0:02:13.9]} 23... a5 {[%clk 0:01:19.8]} 24. Nb5+
{[%clk 0:02:09.4]} 24... Kb8 {[%clk 0:01:14.3]} 25. Rf2 {[%clk 0:02:08.3]} 25...
Bg7 {[%clk 0:01:03.2]} 26. Rhf1 {[%clk 0:02:07.5]} 26... Rhf8 {[%clk 0:01:03.6]}
27. Bxg5 {[%clk 0:02:05]} 27... fxg5 {[%clk 0:01:03.2]} 28. Bxd7 {[%clk
0:01:54.1]} 28... Bxd7 {[%clk 0:01:03.1]} 29. Rxf8 {[%clk 0:01:53.7]} 29... Rxf8
{[%clk 0:01:02.4]} 30. Rxf8+ {[%clk 0:01:53.4]} 30... Bxf8 {[%clk 0:01:01.4]}
31. Nf5 {[%clk 0:01:52.8]} 31... Qf6 {[%clk 0:00:59.2]} 32. Qf3 {[%clk
0:01:51.3]} 32... Bxb5 {[%clk 0:00:57.4]} 33. axb5 {[%clk 0:01:51.1]} 33... Kc7
{[%clk 0:00:56.5]} 34. c3 {[%clk 0:01:50.8]} 34... Kb8 {[%clk 0:00:54.5]} 35.
Qd3 {[%clk 0:01:45.9]} 35... Qd8 {[%clk 0:00:51.4]} 36. Ka3 {[%clk 0:01:45.8]}
36... Kc7 {[%clk 0:00:48.1]} 37. Ka4 {[%clk 0:01:45.9]} 37... Kd7 {[%clk
0:00:48]} 38. Qf1 {[%clk 0:01:45.8]} 38... Qf6 {[%clk 0:00:47.6]} 39. b4 {[%clk
0:01:39.9]} 39... axb4 {[%clk 0:00:47.3]} 40. cxb4 {[%clk 0:01:40.6]} 40... Qd8
{[%clk 0:00:42.1]} 41. Kb3 {[%clk 0:01:39.5]} 41... Qa8 {[%clk 0:00:37.1]} 42.
Ne3 {[%clk 0:01:37.5]} 42... cxb4 {[%clk 0:00:31.6]} 43. Qf5+ {[%clk 0:01:36.3]}
43... Ke8 {[%clk 0:00:31.7]} 44. Qe6+ {[%clk 0:01:31.5]} 44... Kd8 {[%clk
0:00:30.5]} 45. Qf6+ {[%clk 0:01:30.6]} 45... Ke8 {[%clk 0:00:30.3]} 46. Nc4
{[%clk 0:01:25.7]} 46... Qa1 {[%clk 0:00:25.9]} 47. Qg6+ {[%clk 0:01:22.1]}
47... Kd8 {[%clk 0:00:25.6]} 48. Qf6+ {[%clk 0:01:22]} 48... Ke8 {[%clk
0:00:25.6]} 49. Qf3 {[%clk 0:01:12.6]} 49... Qb1+ {[%clk 0:00:24.7]} 50. Ka4
{[%clk 0:01:12.3]} 50... Qc2+ {[%clk 0:00:21.7]} 51. Kxb4 {[%clk 0:01:12.2]}
51... Qb1+ {[%clk 0:00:21.1]} 52. Kc3 {[%clk 0:01:03.6]} 52... Qxb5 {[%clk
0:00:16.8]} 53. Qe3 {[%clk 0:01:00.8]} 53... Qc5 {[%clk 0:00:16.2]} 54. Qxc5
{[%clk 0:01:00.8]} 54... bxc5 {[%clk 0:00:16.6]} 55. Kb3 {[%clk 0:01:00.9]}
55... Kd7 {[%clk 0:00:15]} 56. Ka4 {[%clk 0:01:01.8]} 56... Be7 {[%clk
0:00:15.1]} 57. Kb5 {[%clk 0:01:02.7]} 57... Bd8 {[%clk 0:00:15.3]} 58. Ne3
{[%clk 0:01:00.8]} 58... Kc8 {[%clk 0:00:13.8]} 59. Nf5 {[%clk 0:01:00]} 59...
Kc7 {[%clk 0:00:13.9]} 60. Nxh6 {[%clk 0:01:00]} 60... Kd7 {[%clk 0:00:11.1]}
61. Nf5 {[%clk 0:01:00]} 61... Ke8 {[%clk 0:00:11.1]} 62. Ne3 {[%clk 0:01:00.3]}
62... Be7 {[%clk 0:00:11.6]} 63. Kc6 {[%clk 0:01:00.1]} 63... Kf7 {[%clk
0:00:10.6]} 64. Nc4 {[%clk 0:01:00]} 64... Bf8 {[%clk 0:00:10]} 65. Kd7 {[%clk
0:00:59.5]} 65... Kf6 {[%clk 0:00:08.8]} 66. Ke8 {[%clk 0:00:59]} 66... Kg7
{[%clk 0:00:07.1]} 67. Nb6 {[%clk 0:00:57.8]} 67... Kg8 {[%clk 0:00:06.7]} 68.
Nd7 {[%clk 0:00:55.4]} 68... c4 {[%clk 0:00:04.7]} 69. Nxf8 {[%clk 0:00:55.7]}
69... c3 {[%clk 0:00:04.8]} 70. Ng6 {[%clk 0:00:56.6]} 70... Kg7 {[%clk
0:00:04]} 71. Ne7 {[%clk 0:00:57.5]} 71... c2 {[%clk 0:00:03.9]} 72. Nf5+ {[%clk
0:00:58.4]} 72... Kh7 {[%clk 0:00:03.4]} 73. Nxd6 {[%clk 0:00:59.3]} 73... c1=Q
{[%clk 0:00:04]} 74. Nf7 {[%clk 0:01:00.1]} 74... Qc8+ {[%clk 0:00:03.9]} 75.
Ke7 {[%clk 0:01:00.4]} 75... Qxg4 {[%clk 0:00:03.9]} 76. d6 {[%clk 0:01:00.7]}
76... Qxe4 {[%clk 0:00:03.9]} 77. Nxg5+ {[%clk 0:01:00.7]} 77... Kh6 {[%clk
0:00:03.5]} 78. Nxe4 {[%clk 0:01:01.6]} 78... Kxh5 {[%clk 0:00:04.2]} 79. d7
{[%clk 0:01:02.1]} 79... Kg4 {[%clk 0:00:05.1]} 80. d8=Q {[%clk 0:01:00.9]}
80... Kf4 {[%clk 0:00:06]} 81. Nf6 {[%clk 0:01:01]} 81... e4 {[%clk 0:00:05.6]}
82. Qd4 {[%clk 0:01:00.9]} 1-0

[Event "Early-Titled-Tuesday-Blitz-May-28-2024"]
[Site "Chess.com"]
[Date "2024.05.28"]
[Round "1"]
[White "AsaHoffmann"]
[Black "KhBegmuratov"]
[Result "0-1"]
[WhiteElo "2379"]
[BlackElo "2683"]
[TimeControl "180+1"]
[EndTime "8:08:31 PDT"]
[Termination "KhBegmuratov won by resignation"]

1. d4 {[%clk 0:02:53.8]} 1... d5 {[%clk 0:02:59.6]} 2. Bg5 {[%clk 0:02:48.8]}
2... h6 {[%clk 0:02:53.8]} 3. Bh4 {[%clk 0:02:48.5]} 3... Nd7 {[%clk 0:02:53.6]}
4. c4 {[%clk 0:02:46.9]} 4... c6 {[%clk 0:02:48.2]} 5. cxd5 {[%clk 0:02:46.8]}
5... cxd5 {[%clk 0:02:48.1]} 6. Nc3 {[%clk 0:02:44.8]} 6... Ngf6 {[%clk
0:02:47.4]} 7. e3 {[%clk 0:02:44.8]} 7... e6 {[%clk 0:02:45.6]} 8. Bd3 {[%clk
0:02:44.5]} 8... a6 {[%clk 0:02:43.7]} 9. f4 {[%clk 0:02:44.4]} 9... Be7 {[%clk
0:02:36.6]} 10. Nf3 {[%clk 0:02:44.2]} 10... O-O {[%clk 0:02:30.9]} 11. O-O
{[%clk 0:02:43.9]} 11... Ne8 {[%clk 0:02:22.9]} 12. Bg3 {[%clk 0:02:41]} 12...
Nd6 {[%clk 0:02:21.6]} 13. Ne5 {[%clk 0:02:40.1]} 13... Nf6 {[%clk 0:02:16.6]}
14. a4 {[%clk 0:02:37.1]} 14... Bd7 {[%clk 0:01:47.3]} 15. Qf3 {[%clk
0:02:31.9]} 15... Rc8 {[%clk 0:01:46.5]} 16. Rac1 {[%clk 0:02:30.9]} 16... Qb6
{[%clk 0:01:31.8]} 17. Rc2 {[%clk 0:02:23]} 17... Bc6 {[%clk 0:01:11.9]} 18. Bh4
{[%clk 0:02:20.7]} 18... Qb4 {[%clk 0:00:52]} 19. f5 {[%clk 0:02:16.5]} 19...
exf5 {[%clk 0:00:39.3]} 20. Bxf5 {[%clk 0:02:15.8]} 20... Nxf5 {[%clk
0:00:39.1]} 21. Qxf5 {[%clk 0:02:15.5]} 21... Qd6 {[%clk 0:00:18]} 22. Rcf2
{[%clk 0:02:11.2]} 22... Bd8 {[%clk 0:00:09.5]} 23. Bg3 {[%clk 0:02:08.9]} 23...
Qe6 {[%clk 0:00:09.1]} 24. Qd3 {[%clk 0:01:56.5]} 24... Be7 {[%clk 0:00:06.8]}
25. Ne2 {[%clk 0:01:53.4]} 25... Bxa4 {[%clk 0:00:03.7]} 26. Nf4 {[%clk
0:01:52.7]} 26... Qb6 {[%clk 0:00:04.4]} 27. Qf5 {[%clk 0:01:48.4]} 27... Bb5
{[%clk 0:00:03.1]} 28. Re1 {[%clk 0:01:44.9]} 28... Bd6 {[%clk 0:00:03.2]} 29.
Bh4 {[%clk 0:01:43.9]} 29... Bxe5 {[%clk 0:00:02.6]} 30. dxe5 {[%clk 0:01:40.8]}
30... Bd7 {[%clk 0:00:02.2]} 31. Qd3 {[%clk 0:01:31.8]} 31... Ng4 {[%clk
0:00:02.6]} 32. Nxd5 {[%clk 0:01:28.5]} 32... Nxf2 {[%clk 0:00:02.2]} 33. Bxf2
{[%clk 0:01:23.3]} 33... Qe6 {[%clk 0:00:02.3]} 34. e4 {[%clk 0:01:23.2]} 34...
Bc6 {[%clk 0:00:02.5]} 35. Qf3 {[%clk 0:01:22.2]} 35... Rfe8 {[%clk 0:00:02.4]}
36. h3 {[%clk 0:01:21.4]} 36... Rcd8 {[%clk 0:00:02.4]} 37. Nf4 {[%clk
0:01:19.4]} 37... Qxe5 {[%clk 0:00:02.8]} 38. Bg3 {[%clk 0:01:19.3]} 38... Qxb2
{[%clk 0:00:03.3]} 39. Kh2 {[%clk 0:01:18.3]} 39... a5 {[%clk 0:00:03.4]} 40.
Rf1 {[%clk 0:01:14.9]} 40... a4 {[%clk 0:00:03.7]} 41. Nh5 {[%clk 0:01:11.3]}
41... Rf8 {[%clk 0:00:02.5]} 42. Bh4 {[%clk 0:01:07.3]} 42... Rde8 {[%clk
0:00:02.5]} 43. Qg3 {[%clk 0:01:04.8]} 43... Re6 {[%clk 0:00:02.6]} 44. Rf4
{[%clk 0:00:53.3]} 44... Rg6 {[%clk 0:00:02.7]} 45. Rg4 {[%clk 0:00:52.5]} 45...
Rxg4 {[%clk 0:00:03.2]} 46. Qxg4 {[%clk 0:00:52.3]} 46... Qe5+ {[%clk
0:00:03.9]} 47. Bg3 {[%clk 0:00:51.8]} 47... Qg5 {[%clk 0:00:04.1]} 48. Qf3
{[%clk 0:00:48.9]} 48... Bxe4 {[%clk 0:00:03.8]} 49. Qe2 {[%clk 0:00:45.8]}
49... a3 {[%clk 0:00:04.1]} 50. Qxe4 {[%clk 0:00:43.9]} 50... Qxh5 {[%clk
0:00:04.5]} 51. Be5 {[%clk 0:00:42.1]} 51... a2 {[%clk 0:00:03.7]} 52. Ba1
{[%clk 0:00:37.4]} 52... Qg6 {[%clk 0:00:04.3]} 53. Qd4 {[%clk 0:00:35.6]} 53...
Re8 {[%clk 0:00:04.1]} 54. h4 {[%clk 0:00:34.6]} 54... Kh7 {[%clk 0:00:02.9]}
55. Qd7 {[%clk 0:00:30.4]} 55... Re2 {[%clk 0:00:02.6]} 56. Qd5 {[%clk
0:00:29.1]} 56... h5 {[%clk 0:00:02.8]} 57. Kg1 {[%clk 0:00:26.4]} 57... Re4
{[%clk 0:00:03.2]} 58. Kf2 {[%clk 0:00:23.5]} 58... Rf4+ {[%clk 0:00:03.2]} 59.
Ke3 {[%clk 0:00:22.7]} 59... Rxh4 {[%clk 0:00:03.8]} 60. Qe5 {[%clk 0:00:19.3]}
60... Rg4 {[%clk 0:00:03.2]} 61. g3 {[%clk 0:00:17.7]} 61... Rxg3+ {[%clk
0:00:03.5]} 62. Kd4 {[%clk 0:00:17.7]} 62... Qd3+ {[%clk 0:00:02.4]} 63. Kc5
{[%clk 0:00:17.6]} 63... Qg6 {[%clk 0:00:03]} 64. Kb5 {[%clk 0:00:15.6]} 64...
Rg5 {[%clk 0:00:03.4]} 65. Kb4 {[%clk 0:00:14.4]} 65... Rxe5 {[%clk 0:00:03.5]}
66. Bxe5 {[%clk 0:00:13.9]} 66... Qb1+ {[%clk 0:00:04.3]} 67. Kc5 {[%clk
0:00:13.2]} 67... a1=Q {[%clk 0:00:05.2]} 0-1

[Event "Early-Titled-Tuesday-Blitz-May-28-2024"]
[Site "Chess.com"]
[Date "2024.05.28"]
[Round "1"]
[White "Grebnev_A"]
[Black "mishanick"]
[Result "0-1"]
[WhiteElo "2537"]
[BlackElo "3053"]
[TimeControl "180+1"]
[EndTime "8:08:32 PDT"]
[Termination "mishanick won by resignation"]

1. Nf3 {[%clk 0:03:00.9]} 1... d5 {[%clk 0:03:00]} 2. e3 {[%clk 0:03:00.5]} 2...
Nf6 {[%clk 0:03:00]} 3. c4 {[%clk 0:03:00.8]} 3... e6 {[%clk 0:03:00.6]} 4. b3
{[%clk 0:03:01.3]} 4... Be7 {[%clk 0:03:01.4]} 5. Nc3 {[%clk 0:03:01.5]} 5...
O-O {[%clk 0:03:02]} 6. Bb2 {[%clk 0:03:02.1]} 6... c5 {[%clk 0:03:01.9]} 7.
cxd5 {[%clk 0:03:02.3]} 7... exd5 {[%clk 0:03:02.5]} 8. d4 {[%clk 0:03:02.7]}
8... Nc6 {[%clk 0:03:03.1]} 9. dxc5 {[%clk 0:03:00.9]} 9... Bxc5 {[%clk
0:03:02.6]} 10. Be2 {[%clk 0:02:59.7]} 10... d4 {[%clk 0:03:01.5]} 11. exd4
{[%clk 0:02:57.5]} 11... Nxd4 {[%clk 0:03:02.4]} 12. Nxd4 {[%clk 0:02:57.9]}
12... Bxd4 {[%clk 0:03:03]} 13. O-O {[%clk 0:02:58.2]} 13... Be5 {[%clk
0:02:35.6]} 14. Qxd8 {[%clk 0:02:54.6]} 14... Rxd8 {[%clk 0:02:36.5]} 15. Rfd1
{[%clk 0:02:54.7]} 15... Bg4 {[%clk 0:02:35.1]} 16. Bxg4 {[%clk 0:02:50.5]}
16... Nxg4 {[%clk 0:02:36]} 17. h3 {[%clk 0:02:50.7]} 17... Nf6 {[%clk
0:02:34.9]} 18. Kf1 {[%clk 0:02:47.3]} 18... Bxc3 {[%clk 0:02:32.2]} 19. Bxc3
{[%clk 0:02:46.1]} 19... Ne4 {[%clk 0:02:32.9]} 20. Be1 {[%clk 0:02:46.5]} 20...
f6 {[%clk 0:02:24.4]} 21. Rxd8+ {[%clk 0:02:42.9]} 21... Rxd8 {[%clk 0:02:24.1]}
22. Rc1 {[%clk 0:02:43.8]} 22... Rd7 {[%clk 0:02:24.2]} 23. f3 {[%clk
0:02:42.7]} 23... Ng5 {[%clk 0:02:24.5]} 24. Rc2 {[%clk 0:02:40.1]} 24... Ne6
{[%clk 0:02:23.4]} 25. Bf2 {[%clk 0:02:40.3]} 25... a6 {[%clk 0:02:22.8]} 26.
Be3 {[%clk 0:02:39.4]} 26... Kf7 {[%clk 0:02:22.8]} 27. Ke2 {[%clk 0:02:39.9]}
27... h5 {[%clk 0:02:23.4]} 28. g4 {[%clk 0:02:38.2]} 28... hxg4 {[%clk
0:02:15]} 29. hxg4 {[%clk 0:02:39.1]} 29... g5 {[%clk 0:02:15.4]} 30. a4 {[%clk
0:02:37.1]} 30... Kg6 {[%clk 0:02:15.2]} 31. Rc8 {[%clk 0:02:36.5]} 31... Nc7
{[%clk 0:02:12.2]} 32. Bd2 {[%clk 0:02:28.8]} 32... Nd5 {[%clk 0:02:11.7]} 33.
Rc4 {[%clk 0:02:25.6]} 33... Rh7 {[%clk 0:02:10.9]} 34. Rd4 {[%clk 0:02:23.2]}
34... Rd7 {[%clk 0:02:03.8]} 35. Kd3 {[%clk 0:02:23.2]} 35... Kf7 {[%clk
0:02:04.4]} 36. Ke2 {[%clk 0:02:22.7]} 36... Re7+ {[%clk 0:02:00.7]} 37. Kd3
{[%clk 0:02:22]} 37... Rd7 {[%clk 0:01:58.6]} 38. Ke2 {[%clk 0:02:22.3]} 38...
Ke6 {[%clk 0:01:59.3]} 39. Re4+ {[%clk 0:02:22.5]} 39... Kd6 {[%clk 0:01:59.9]}
40. Bb4+ {[%clk 0:02:22]} 40... Kc7 {[%clk 0:01:55.3]} 41. Rc4+ {[%clk
0:02:20.6]} 41... Kd8 {[%clk 0:01:52.6]} 42. Ba5+ {[%clk 0:02:18.4]} 42... Ke7
{[%clk 0:01:49.8]} 43. Bb4+ {[%clk 0:02:17.7]} 43... Kf7 {[%clk 0:01:49.5]} 44.
Bd2 {[%clk 0:02:17.5]} 44... Ne7 {[%clk 0:01:47.2]} 45. Bc3 {[%clk 0:02:14.2]}
45... Kg6 {[%clk 0:01:42.6]} 46. Re4 {[%clk 0:02:09.2]} 46... Nd5 {[%clk
0:01:41.5]} 47. Bd2 {[%clk 0:02:09.6]} 47... Nc7 {[%clk 0:01:40.5]} 48. Bc3
{[%clk 0:02:07.4]} 48... Kf7 {[%clk 0:01:39.5]} 49. Rc4 {[%clk 0:02:05.2]} 49...
Ne6 {[%clk 0:01:38.6]} 50. Ke3 {[%clk 0:01:57.8]} 50... Nf4 {[%clk 0:01:38]} 51.
Bd4 {[%clk 0:01:32.9]} 51... Kg6 {[%clk 0:01:15.3]} 52. Kf2 {[%clk 0:01:26.7]}
52... Rh7 {[%clk 0:01:13.9]} 53. Be3 {[%clk 0:01:06]} 53... Nd3+ {[%clk
0:01:01.5]} 54. Kg3 {[%clk 0:00:58.3]} 54... Re7 {[%clk 0:01:01.2]} 55. Bd4
{[%clk 0:00:58.5]} 55... Re2 {[%clk 0:01:00.8]} 56. Rc7 {[%clk 0:00:54.1]} 56...
Nf4 {[%clk 0:00:53.1]} 57. Bf2 {[%clk 0:00:54.3]} 57... b5 {[%clk 0:00:53.7]}
58. axb5 {[%clk 0:00:55.2]} 58... axb5 {[%clk 0:00:54.4]} 59. Rb7 {[%clk
0:00:55.4]} 59... b4 {[%clk 0:00:51]} 60. Rb8 {[%clk 0:00:36]} 60... Rc2 {[%clk
0:00:36.8]} 61. Rb6 {[%clk 0:00:28.8]} 61... Ra2 {[%clk 0:00:37]} 62. Rb8 {[%clk
0:00:28.4]} 62... Ne2+ {[%clk 0:00:27.6]} 63. Kg2 {[%clk 0:00:27.6]} 63... Rb2
{[%clk 0:00:23]} 64. Bc5 {[%clk 0:00:17.4]} 64... Nf4+ {[%clk 0:00:18.5]} 65.
Kf1 {[%clk 0:00:17.5]} 65... Rxb3 {[%clk 0:00:17.8]} 66. Bf8 {[%clk 0:00:17.6]}
66... Rxf3+ {[%clk 0:00:17.6]} 67. Ke1 {[%clk 0:00:17.8]} 67... b3 {[%clk
0:00:17.8]} 68. Rb7 {[%clk 0:00:16.9]} 68... Ne6 {[%clk 0:00:18.2]} 69. Ba3
{[%clk 0:00:16.6]} 69... Rf4 {[%clk 0:00:18]} 70. Rxb3 {[%clk 0:00:15.2]} 70...
Rxg4 {[%clk 0:00:18.3]} 71. Rb6 {[%clk 0:00:16.1]} 71... Nf4 {[%clk 0:00:17.7]}
72. Bb2 {[%clk 0:00:16.1]} 72... Nd3+ {[%clk 0:00:17.8]} 73. Ke2 {[%clk
0:00:16.5]} 73... Nxb2 {[%clk 0:00:18.5]} 74. Kf3 {[%clk 0:00:17.4]} 74... Rf4+
{[%clk 0:00:18.9]} 75. Kg3 {[%clk 0:00:17.3]} 75... Nc4 {[%clk 0:00:19.8]} 0-1